[Event "Titled Tuesday Blitz May 23 Early 2023"]
[White "Coelho, Ramyres Santana"]
[Black "Demin, Vladimir"]
[WhiteFideId "2120690"]
[BlackFideId "4167457"]
[WhiteElo "1888"]
[BlackElo "2566"]
[Result "0-1"]
[Round "01"]
[TimeControl "180+2"]
[Date "2023.05.23"]
[WhiteClock "0:00:00"]
[BlackClock "0:00:28"]

1. e4 {[%clk 0:02:58]}  e5 {[%clk 0:03:00]} 2. Nf3 {[%clk 0:02:57]}  Nc6 {[%clk 0:03:00]} 3. d4 {[%clk 0:02:56]}  exd4 {[%clk 0:03:00]} 4. Bc4 {[%clk 0:02:56]}  Bc5 {[%clk 0:03:00]} 5. c3 {[%clk 0:02:55]}  Nf6 {[%clk 0:02:57]} 6. e5 {[%clk 0:02:53]}  d5 {[%clk 0:02:56]} 7. Bb5 {[%clk 0:02:53]}  Ne4 {[%clk 0:02:55]} 8. cxd4 {[%clk 0:02:53]}  Bb6 {[%clk 0:02:54]} 9. h3 {[%clk 0:02:47]}  O-O {[%clk 0:02:52]} 10. O-O {[%clk 0:02:46]}  h6 {[%clk 0:02:52]} 11. Nc3 {[%clk 0:02:46]}  Ne7 {[%clk 0:02:30]} 12. Bd3 {[%clk 0:02:34]}  Bf5 {[%clk 0:02:29]} 13. a4 {[%clk 0:02:19]}  c6 {[%clk 0:02:26]} 14. Be3 {[%clk 0:02:11]}  f6 {[%clk 0:02:24]} 15. exf6 {[%clk 0:02:03]}  Rxf6 {[%clk 0:02:25]} 16. Nh4 {[%clk 0:01:58]}  Bh7 {[%clk 0:02:10]} 17. Nxe4 {[%clk 0:01:47]}  dxe4 {[%clk 0:02:04]} 18. Bc4+ {[%clk 0:01:45]}  Kh8 {[%clk 0:02:03]} 19. g4 {[%clk 0:01:32]}  Rf8 {[%clk 0:01:45]} 20. g5 {[%clk 0:01:21]}  Nd5 {[%clk 0:01:37]} 21. Bxd5 {[%clk 0:01:18]}  cxd5 {[%clk 0:01:38]} 22. Qh5 {[%clk 0:01:11]}  Bc7 {[%clk 0:01:15]} 23. gxh6 {[%clk 0:00:59]}  Qd6 {[%clk 0:00:47]} 24. hxg7+ {[%clk 0:00:56]}  Kxg7 {[%clk 0:00:48]} 25. Qe5+ {[%clk 0:00:10]}  Qxe5 {[%clk 0:00:48]} 26. dxe5 {[%clk 0:00:11]}  Bxe5 {[%clk 0:00:48]} 27. Kh1 {[%clk 0:00:10]}  Kh8 {[%clk 0:00:41]} 28. Rg1 {[%clk 0:00:10]}  Rg8 {[%clk 0:00:41]} 29. Rad1 {[%clk 0:00:09]}  Rxg1+ {[%clk 0:00:39]} 30. Kxg1 {[%clk 0:00:10]}  Rd8 {[%clk 0:00:38]} 31. Bd4 {[%clk 0:00:09]}  Bxd4 {[%clk 0:00:38]} 32. Rxd4 {[%clk 0:00:10]}  Kg7 {[%clk 0:00:37]} 33. Ng2 {[%clk 0:00:09]}  Kf6 {[%clk 0:00:38]} 34. Ne3 {[%clk 0:00:09]}  Ke5 {[%clk 0:00:37]} 35. Rd2 {[%clk 0:00:08]}  d4 {[%clk 0:00:37]} 36. Ng4+ {[%clk 0:00:08]}  Kf4 {[%clk 0:00:37]} 37. Rd1 {[%clk 0:00:07]}  Bf5 {[%clk 0:00:36]} 38. Nh6 {[%clk 0:00:05]}  Be6 {[%clk 0:00:35]} 39. Ng4 {[%clk 0:00:04]}  Bxg4 {[%clk 0:00:35]} 40. hxg4 {[%clk 0:00:05]}  Kxg4 {[%clk 0:00:35]} 41. Rc1 {[%clk 0:00:05]}  d3 {[%clk 0:00:35]} 42. Kf1 {[%clk 0:00:04]}  d2 {[%clk 0:00:34]} 43. Rd1 {[%clk 0:00:04]}  Kf3 {[%clk 0:00:34]} 44. b4 {[%clk 0:00:03]}  Rh8 {[%clk 0:00:29]} 45. Kg1 {[%clk 0:00:02]}  Ke2 {[%clk 0:00:29]} 46. Ra1 {[%clk 0:00:00]}  Rg8+ {[%clk 0:00:28]} 0-1


[Site "https://www.chess.com"]

[Event "Titled Tuesday Blitz May 23 Early 2023"]
[White "Danielyan, Vahe"]
[Black "Antonova, Nadezhda"]
[WhiteFideId "13304828"]
[BlackFideId "14700182"]
[WhiteElo "2423"]
[BlackElo "1799"]
[Result "1-0"]
[Round "01"]
[TimeControl "180+2"]
[Date "2023.05.23"]
[WhiteClock "0:02:09"]
[BlackClock "0:02:01"]

1. e4 {[%clk 0:02:59]}  c6 {[%clk 0:02:59]} 2. d4 {[%clk 0:02:58]}  d5 {[%clk 0:02:59]} 3. e5 {[%clk 0:02:59]}  Bf5 {[%clk 0:02:59]} 4. h4 {[%clk 0:02:58]}  h5 {[%clk 0:02:58]} 5. Bd3 {[%clk 0:02:58]}  Bxd3 {[%clk 0:02:58]} 6. Qxd3 {[%clk 0:02:59]}  e6 {[%clk 0:02:58]} 7. Bg5 {[%clk 0:02:59]}  Qb6 {[%clk 0:02:52]} 8. Nd2 {[%clk 0:02:58]}  c5 {[%clk 0:02:44]} 9. c4 {[%clk 0:02:57]}  dxc4 {[%clk 0:02:26]} 10. Nxc4 {[%clk 0:02:54]}  Qc6 {[%clk 0:02:25]} 11. Nf3 {[%clk 0:02:49]}  b5 {[%clk 0:02:20]} 12. dxc5 {[%clk 0:02:30]}  f6 {[%clk 0:02:11]} 13. Qg6+ {[%clk 0:02:14]}  Ke7 {[%clk 0:02:08]} 14. Nd6 {[%clk 0:02:14]}  fxg5 {[%clk 0:02:02]} 15. Qf7+ {[%clk 0:02:13]}  Kd8 {[%clk 0:02:02]} 16. Qxf8+ {[%clk 0:02:14]}  Kc7 {[%clk 0:02:01]} 17. Qc8# {[%clk 0:02:09]} 1-0


[Site "https://www.chess.com"]

[Event "Titled Tuesday Blitz May 23 Early 2023"]
[White "rionelG"]
[Black "Melian, Juan Sebastian"]
[BlackFideId "3706575"]
[WhiteElo "2205"]
[BlackElo "2092"]
[Result "0-1"]
[Round "01"]
[TimeControl "180+2"]
[Date "2023.05.23"]
[WhiteClock "0:00:21"]
[BlackClock "0:01:27"]

1. e4 {[%clk 0:03:00]}  c5 {[%clk 0:02:54]} 2. g3 {[%clk 0:03:00]}  e6 {[%clk 0:02:52]} 3. d3 {[%clk 0:02:59]}  Nf6 {[%clk 0:02:52]} 4. Bg2 {[%clk 0:02:59]}  d5 {[%clk 0:02:50]} 5. Nd2 {[%clk 0:02:59]}  Nc6 {[%clk 0:02:50]} 6. Ngf3 {[%clk 0:02:58]}  g6 {[%clk 0:02:50]} 7. O-O {[%clk 0:02:58]}  Bg7 {[%clk 0:02:50]} 8. Re1 {[%clk 0:02:59]}  O-O {[%clk 0:02:51]} 9. c3 {[%clk 0:02:57]}  b6 {[%clk 0:02:45]} 10. Qc2 {[%clk 0:02:53]}  a5 {[%clk 0:02:45]} 11. a4 {[%clk 0:02:52]}  Ba6 {[%clk 0:02:45]} 12. e5 {[%clk 0:01:44]}  Nd7 {[%clk 0:02:45]} 13. d4 {[%clk 0:01:45]}  cxd4 {[%clk 0:02:45]} 14. cxd4 {[%clk 0:01:46]}  Rc8 {[%clk 0:02:24]} 15. Qb3 {[%clk 0:01:43]}  Nb4 {[%clk 0:02:12]} 16. Rb1 {[%clk 0:01:25]}  Bd3 {[%clk 0:01:53]} 17. Ra1 {[%clk 0:01:23]}  Bc2 {[%clk 0:01:28]} 18. Qa3 {[%clk 0:00:21]}  Bf5 {[%clk 0:01:27]} 0-1


[Site "https://www.chess.com"]

[Event "Titled Tuesday Blitz May 23 Early 2023"]
[White "Toncheva, Nadya"]
[Black "Floresvillar Gonzalez, Luis Migu"]
[WhiteFideId "2924056"]
[BlackFideId "5100542"]
[WhiteElo "2101"]
[BlackElo "2040"]
[Result "1-0"]
[Round "01"]
[TimeControl "180+2"]
[Date "2023.05.23"]
[WhiteClock "0:02:00"]
[BlackClock "0:01:08"]

1. e4 {[%clk 0:02:58]}  d6 {[%clk 0:02:58]} 2. d4 {[%clk 0:02:56]}  Nf6 {[%clk 0:02:58]} 3. Nc3 {[%clk 0:02:56]}  g6 {[%clk 0:02:58]} 4. Be3 {[%clk 0:02:55]}  Bg7 {[%clk 0:02:58]} 5. f3 {[%clk 0:02:55]}  Nbd7 {[%clk 0:02:55]} 6. Qd2 {[%clk 0:02:55]}  c5 {[%clk 0:02:55]} 7. O-O-O {[%clk 0:02:53]}  cxd4 {[%clk 0:02:55]} 8. Bxd4 {[%clk 0:02:52]}  O-O {[%clk 0:02:53]} 9. h4 {[%clk 0:02:51]}  h5 {[%clk 0:02:52]} 10. Kb1 {[%clk 0:02:47]}  a6 {[%clk 0:02:50]} 11. g4 {[%clk 0:02:39]}  hxg4 {[%clk 0:02:47]} 12. h5 {[%clk 0:02:37]}  gxh5 {[%clk 0:02:30]} 13. fxg4 {[%clk 0:02:33]}  Ne5 {[%clk 0:02:24]} 14. Bxe5 {[%clk 0:02:30]}  Bxg4 {[%clk 0:02:16]} 15. Bxf6 {[%clk 0:02:27]}  Bxf6 {[%clk 0:02:09]} 16. Be2 {[%clk 0:02:26]}  Bxc3 {[%clk 0:01:49]} 17. Qxc3 {[%clk 0:02:25]}  e5 {[%clk 0:01:40]} 18. Bxg4 {[%clk 0:02:21]}  hxg4 {[%clk 0:01:38]} 19. Nf3 {[%clk 0:02:17]}  f5 {[%clk 0:01:30]} 20. Nxe5 {[%clk 0:02:07]}  Qf6 {[%clk 0:01:21]} 21. Qb3+ {[%clk 0:02:02]}  Kg7 {[%clk 0:01:08]} 22. Qxb7+ {[%clk 0:02:00]} 1-0


[Site "https://www.chess.com"]

[Event "Titled Tuesday Blitz May 23 Early 2023"]
[White "Guevara Sanchez, Erick Marvin"]
[Black "Vestby-Ellingsen, Mads"]
[WhiteFideId "6700136"]
[BlackFideId "1520857"]
[WhiteElo "2040"]
[BlackElo "2244"]
[Result "0-1"]
[Round "01"]
[TimeControl "180+2"]
[Date "2023.05.23"]
[WhiteClock "0:01:49"]
[BlackClock "0:01:44"]

1. e4 {[%clk 0:02:53]}  e6 {[%clk 0:02:59]} 2. d4 {[%clk 0:02:53]}  d5 {[%clk 0:02:59]} 3. Nc3 {[%clk 0:02:52]}  Nf6 {[%clk 0:02:58]} 4. Bg5 {[%clk 0:02:51]}  h6 {[%clk 0:02:57]} 5. Bxf6 {[%clk 0:02:46]}  Qxf6 {[%clk 0:02:58]} 6. e5 {[%clk 0:02:46]}  Qd8 {[%clk 0:02:57]} 7. f4 {[%clk 0:02:45]}  c5 {[%clk 0:02:57]} 8. Nf3 {[%clk 0:02:44]}  Nc6 {[%clk 0:02:57]} 9. Bb5 {[%clk 0:02:43]}  Qb6 {[%clk 0:02:56]} 10. dxc5 {[%clk 0:02:41]}  Bxc5 {[%clk 0:02:54]} 11. Qe2 {[%clk 0:02:42]}  Bd7 {[%clk 0:02:53]} 12. O-O-O {[%clk 0:02:38]}  a6 {[%clk 0:02:51]} 13. Bd3 {[%clk 0:02:22]}  Nb4 {[%clk 0:02:47]} 14. a3 {[%clk 0:02:18]}  Nxd3+ {[%clk 0:02:45]} 15. Qxd3 {[%clk 0:02:19]}  Rc8 {[%clk 0:02:39]} 16. f5 {[%clk 0:02:15]}  O-O {[%clk 0:02:36]} 17. f6 {[%clk 0:02:15]}  Qa5 {[%clk 0:02:30]} 18. Nh4 {[%clk 0:02:12]}  Bxa3 {[%clk 0:02:10]} 19. bxa3 {[%clk 0:02:02]}  Rxc3 {[%clk 0:02:05]} 20. Qd2 {[%clk 0:01:58]}  Rfc8 {[%clk 0:01:53]} 21. fxg7 {[%clk 0:01:51]}  Qxa3+ {[%clk 0:01:46]} 22. Kb1 {[%clk 0:01:50]}  Qb4+ {[%clk 0:01:44]} 23. Ka1 {[%clk 0:01:49]}  Ra3# {[%clk 0:01:44]} 0-1


[Site "https://www.chess.com"]

[Event "Titled Tuesday Blitz May 23 Early 2023"]
[White "Han, Yichen"]
[Black "Ruge, Edison"]
[WhiteFideId "1054430"]
[BlackFideId "4401000"]
[WhiteElo "2342"]
[BlackElo "2175"]
[Result "1-0"]
[Round "01"]
[TimeControl "180+2"]
[Date "2023.05.23"]
[WhiteClock "0:00:06"]
[BlackClock "0:00:00"]

1. d4 {[%clk 0:02:54]}  d5 {[%clk 0:02:58]} 2. c4 {[%clk 0:02:53]}  e5 {[%clk 0:02:58]} 3. dxe5 {[%clk 0:02:40]}  d4 {[%clk 0:02:58]} 4. a3 {[%clk 0:02:37]}  Nc6 {[%clk 0:02:57]} 5. Nf3 {[%clk 0:02:37]}  a5 {[%clk 0:02:57]} 6. g3 {[%clk 0:02:17]}  Bg4 {[%clk 0:02:57]} 7. Nbd2 {[%clk 0:02:12]}  a4 {[%clk 0:02:51]} 8. Bg2 {[%clk 0:02:06]}  Nge7 {[%clk 0:02:49]} 9. O-O {[%clk 0:02:01]}  Ng6 {[%clk 0:02:49]} 10. h3 {[%clk 0:02:00]}  Bxf3 {[%clk 0:02:46]} 11. Nxf3 {[%clk 0:02:01]}  Bc5 {[%clk 0:02:44]} 12. Bg5 {[%clk 0:01:52]}  Qd7 {[%clk 0:02:43]} 13. e3 {[%clk 0:01:39]}  h6 {[%clk 0:02:38]} 14. Bf4 {[%clk 0:01:36]}  Nxf4 {[%clk 0:02:34]} 15. exf4 {[%clk 0:01:35]}  O-O {[%clk 0:02:30]} 16. Ne1 {[%clk 0:01:33]}  Na5 {[%clk 0:01:52]} 17. Nd3 {[%clk 0:01:32]}  Be7 {[%clk 0:01:49]} 18. Qg4 {[%clk 0:01:27]}  Qxg4 {[%clk 0:01:42]} 19. hxg4 {[%clk 0:01:27]}  Rab8 {[%clk 0:01:39]} 20. Rac1 {[%clk 0:01:19]}  Nb3 {[%clk 0:01:38]} 21. Rc2 {[%clk 0:01:12]}  c6 {[%clk 0:01:32]} 22. Rd1 {[%clk 0:01:00]}  Rfd8 {[%clk 0:01:30]} 23. f5 {[%clk 0:00:56]}  Bf8 {[%clk 0:01:22]} 24. f4 {[%clk 0:00:49]}  Be7 {[%clk 0:01:13]} 25. Kf2 {[%clk 0:00:40]}  Ra8 {[%clk 0:01:11]} 26. Ke2 {[%clk 0:00:34]}  Ra6 {[%clk 0:01:11]} 27. Be4 {[%clk 0:00:19]}  Rb6 {[%clk 0:01:10]} 28. Rh1 {[%clk 0:00:16]}  Na5 {[%clk 0:00:58]} 29. Rh5 {[%clk 0:00:11]}  Rb3 {[%clk 0:00:56]} 30. g5 {[%clk 0:00:09]}  Bf8 {[%clk 0:00:51]} 31. f6 {[%clk 0:00:08]}  g6 {[%clk 0:00:50]} 32. Rh1 {[%clk 0:00:09]}  b5 {[%clk 0:00:31]} 33. cxb5 {[%clk 0:00:07]}  cxb5 {[%clk 0:00:31]} 34. gxh6 {[%clk 0:00:07]}  Kh7 {[%clk 0:00:31]} 35. f5 {[%clk 0:00:07]}  Nc4 {[%clk 0:00:30]} 36. e6 {[%clk 0:00:07]}  Bd6 {[%clk 0:00:15]} 37. exf7 {[%clk 0:00:07]}  gxf5 {[%clk 0:00:13]} 38. Bxf5+ {[%clk 0:00:07]}  Kh8 {[%clk 0:00:13]} 39. g4 {[%clk 0:00:06]}  Ne5 {[%clk 0:00:12]} 40. g5 {[%clk 0:00:05]}  Nxf7 {[%clk 0:00:10]} 41. g6 {[%clk 0:00:06]}  Ng5 {[%clk 0:00:07]} 42. g7+ {[%clk 0:00:06]}  Kg8 {[%clk 0:00:00]} 43. Bg6 {[%clk 0:00:06]} 1-0


[Site "https://www.chess.com"]

[Event "Titled Tuesday Blitz May 23 Early 2023"]
[White "Gontcharov, Vladislav"]
[Black "KSho99"]
[WhiteFideId "4123492"]
[WhiteElo "2420"]
[BlackElo "2151"]
[Result "1-0"]
[Round "01"]
[TimeControl "180+2"]
[Date "2023.05.23"]
[WhiteClock "0:01:32"]
[BlackClock "0:01:05"]

1. d4 {[%clk 0:02:59]}  d5 {[%clk 0:02:59]} 2. c4 {[%clk 0:02:56]}  dxc4 {[%clk 0:02:59]} 3. Nf3 {[%clk 0:02:55]}  Nf6 {[%clk 0:02:59]} 4. e3 {[%clk 0:02:55]}  e6 {[%clk 0:03:00]} 5. Bxc4 {[%clk 0:02:55]}  c5 {[%clk 0:03:00]} 6. O-O {[%clk 0:02:54]}  a6 {[%clk 0:03:00]} 7. Qe2 {[%clk 0:02:52]}  b5 {[%clk 0:02:47]} 8. Bb3 {[%clk 0:02:52]}  Bb7 {[%clk 0:02:41]} 9. Rd1 {[%clk 0:02:47]}  c4 {[%clk 0:02:37]} 10. Bc2 {[%clk 0:02:46]}  Nbd7 {[%clk 0:02:36]} 11. a4 {[%clk 0:02:44]}  Qb6 {[%clk 0:02:24]} 12. e4 {[%clk 0:02:41]}  Be7 {[%clk 0:02:20]} 13. Be3 {[%clk 0:02:04]}  Ng4 {[%clk 0:02:15]} 14. Bf4 {[%clk 0:02:03]}  Bd6 {[%clk 0:02:05]} 15. e5 {[%clk 0:01:57]}  Be7 {[%clk 0:01:54]} 16. Nc3 {[%clk 0:01:56]}  Nh6 {[%clk 0:01:40]} 17. Bxh6 {[%clk 0:01:55]}  gxh6 {[%clk 0:01:40]} 18. Be4 {[%clk 0:01:54]}  Nf8 {[%clk 0:01:21]} 19. axb5 {[%clk 0:01:51]}  Bxe4 {[%clk 0:01:18]} 20. Qxe4 {[%clk 0:01:48]}  Ra7 {[%clk 0:01:15]} 21. bxa6 {[%clk 0:01:43]}  Rxa6 {[%clk 0:01:14]} 22. Rxa6 {[%clk 0:01:36]}  Qxa6 {[%clk 0:01:15]} 23. d5 {[%clk 0:01:35]}  Rg8 {[%clk 0:01:05]} 24. d6 {[%clk 0:01:32]} 1-0


[Site "https://www.chess.com"]

[Event "Titled Tuesday Blitz May 23 Early 2023"]
[White "Ibadov, Dashgyn"]
[Black "Ciuffoletti, Paolo"]
[WhiteFideId "24107514"]
[BlackFideId "807630"]
[WhiteElo "2208"]
[BlackElo "2143"]
[Result "1-0"]
[Round "01"]
[TimeControl "180+2"]
[Date "2023.05.23"]
[WhiteClock "0:01:16"]
[BlackClock "0:00:17"]

1. e4 {[%clk 0:03:00]}  c5 {[%clk 0:02:59]} 2. Nf3 {[%clk 0:02:59]}  Nc6 {[%clk 0:02:58]} 3. Bb5 {[%clk 0:02:58]}  e6 {[%clk 0:02:56]} 4. O-O {[%clk 0:02:58]}  Nge7 {[%clk 0:02:56]} 5. d4 {[%clk 0:02:58]}  cxd4 {[%clk 0:02:55]} 6. Nxd4 {[%clk 0:02:59]}  Nxd4 {[%clk 0:02:55]} 7. Qxd4 {[%clk 0:03:00]}  a6 {[%clk 0:02:49]} 8. Be2 {[%clk 0:02:59]}  Nc6 {[%clk 0:02:48]} 9. Qc3 {[%clk 0:02:59]}  Qf6 {[%clk 0:02:41]} 10. Qxf6 {[%clk 0:02:57]}  gxf6 {[%clk 0:02:40]} 11. Be3 {[%clk 0:02:56]}  b5 {[%clk 0:02:37]} 12. a4 {[%clk 0:02:57]}  b4 {[%clk 0:02:24]} 13. a5 {[%clk 0:02:57]}  Be7 {[%clk 0:02:16]} 14. Nd2 {[%clk 0:02:58]}  Bb7 {[%clk 0:02:15]} 15. Nc4 {[%clk 0:02:58]}  O-O {[%clk 0:02:07]} 16. Nb6 {[%clk 0:02:53]}  Rad8 {[%clk 0:02:05]} 17. Rfd1 {[%clk 0:02:53]}  d6 {[%clk 0:01:38]} 18. f3 {[%clk 0:02:53]}  Kh8 {[%clk 0:01:34]} 19. c3 {[%clk 0:02:22]}  bxc3 {[%clk 0:01:27]} 20. bxc3 {[%clk 0:02:22]}  Ne5 {[%clk 0:01:08]} 21. Bd4 {[%clk 0:02:11]}  Ng6 {[%clk 0:00:57]} 22. Rab1 {[%clk 0:02:07]}  Nf4 {[%clk 0:00:55]} 23. Bf1 {[%clk 0:02:08]}  d5 {[%clk 0:00:46]} 24. exd5 {[%clk 0:02:00]}  Nxd5 {[%clk 0:00:43]} 25. Nxd5 {[%clk 0:01:54]}  Bxd5 {[%clk 0:00:36]} 26. Rb6 {[%clk 0:01:49]}  e5 {[%clk 0:00:28]} 27. Be3 {[%clk 0:01:44]}  Be6 {[%clk 0:00:21]} 28. Rxd8 {[%clk 0:01:37]}  Rxd8 {[%clk 0:00:20]} 29. Bxa6 {[%clk 0:01:25]}  Rd3 {[%clk 0:00:17]} 30. Bxd3 {[%clk 0:01:16]} 1-0


[Site "https://www.chess.com"]

[Event "Titled Tuesday Blitz May 23 Early 2023"]
[White "dDobravcan"]
[Black "Taboas Rodriguez, Daniel"]
[BlackFideId "2208466"]
[WhiteElo "2131"]
[BlackElo "2365"]
[Result "0-1"]
[Round "01"]
[TimeControl "180+2"]
[Date "2023.05.23"]
[WhiteClock "0:00:00"]
[BlackClock "0:00:14"]

1. d4 {[%clk 0:02:58]}  Nf6 {[%clk 0:02:59]} 2. Nc3 {[%clk 0:02:57]}  d5 {[%clk 0:02:59]} 3. Bf4 {[%clk 0:02:56]}  Bf5 {[%clk 0:02:59]} 4. e3 {[%clk 0:02:55]}  e6 {[%clk 0:02:59]} 5. f3 {[%clk 0:02:55]}  Bd6 {[%clk 0:02:59]} 6. g4 {[%clk 0:02:51]}  Bxf4 {[%clk 0:02:56]} 7. exf4 {[%clk 0:02:49]}  Bg6 {[%clk 0:02:43]} 8. h4 {[%clk 0:02:48]}  h5 {[%clk 0:02:40]} 9. g5 {[%clk 0:02:42]}  Ng8 {[%clk 0:02:37]} 10. Bd3 {[%clk 0:02:40]}  Ne7 {[%clk 0:02:37]} 11. Nge2 {[%clk 0:02:37]}  Nbc6 {[%clk 0:02:34]} 12. Bxg6 {[%clk 0:02:21]}  Nxg6 {[%clk 0:02:33]} 13. Qd3 {[%clk 0:02:22]}  Nge7 {[%clk 0:02:15]} 14. O-O-O {[%clk 0:02:17]}  Qd6 {[%clk 0:02:13]} 15. Kb1 {[%clk 0:02:08]}  O-O-O {[%clk 0:02:12]} 16. Na4 {[%clk 0:02:03]}  Kb8 {[%clk 0:02:05]} 17. Nc5 {[%clk 0:01:44]}  b6 {[%clk 0:02:05]} 18. Nb3 {[%clk 0:01:32]}  Rc8 {[%clk 0:02:02]} 19. Rc1 {[%clk 0:01:18]}  Nb4 {[%clk 0:01:47]} 20. Qd2 {[%clk 0:01:16]}  c5 {[%clk 0:01:46]} 21. dxc5 {[%clk 0:01:02]}  bxc5 {[%clk 0:01:47]} 22. c4 {[%clk 0:00:51]}  d4 {[%clk 0:01:45]} 23. a3 {[%clk 0:00:50]}  Nbc6 {[%clk 0:01:43]} 24. Ng3 {[%clk 0:00:44]}  Ng6 {[%clk 0:01:30]} 25. Ne4 {[%clk 0:00:39]}  Qxf4 {[%clk 0:01:27]} 26. Qc2 {[%clk 0:00:27]}  Ka8 {[%clk 0:01:17]} 27. Nbxc5 {[%clk 0:00:25]}  Rb8 {[%clk 0:00:52]} 28. Qa4 {[%clk 0:00:24]}  Rhc8 {[%clk 0:00:52]} 29. b4 {[%clk 0:00:13]}  Qxf3 {[%clk 0:00:44]} 30. Rhf1 {[%clk 0:00:11]}  Qe2 {[%clk 0:00:26]} 31. Rxf7 {[%clk 0:00:11]}  Nge5 {[%clk 0:00:21]} 32. Rxg7 {[%clk 0:00:11]}  Nxc4 {[%clk 0:00:20]} 33. Rc2 {[%clk 0:00:08]}  Qd1+ {[%clk 0:00:18]} 34. Ka2 {[%clk 0:00:08]}  d3 {[%clk 0:00:17]} 35. Rf2 {[%clk 0:00:05]}  Qxa4 {[%clk 0:00:16]} 36. Nxa4 {[%clk 0:00:04]}  Rb7 {[%clk 0:00:14]} 37. Rxb7 {[%clk 0:00:02]}  Kxb7 {[%clk 0:00:15]} 38. Nac5+ {[%clk 0:00:01]}  Ka8 {[%clk 0:00:14]} 39. Nxd3 {[%clk 0:00:00]}  Nd4 {[%clk 0:00:14]} 0-1


[Site "https://www.chess.com"]

[Event "Titled Tuesday Blitz May 23 Early 2023"]
[White "Janaszak, Dawid"]
[Black "Cramling Bellon, Anna"]
[WhiteFideId "1119206"]
[BlackFideId "32009232"]
[WhiteElo "2220"]
[BlackElo "1976"]
[Result "1-0"]
[Round "01"]
[TimeControl "180+2"]
[Date "2023.05.23"]
[WhiteClock "0:00:56"]
[BlackClock "0:00:00"]

1. e4 {[%clk 0:03:00]}  c5 {[%clk 0:02:59]} 2. Nc3 {[%clk 0:02:59]}  Nc6 {[%clk 0:02:59]} 3. f4 {[%clk 0:02:58]}  g6 {[%clk 0:03:00]} 4. Nf3 {[%clk 0:02:58]}  Bg7 {[%clk 0:03:00]} 5. Bc4 {[%clk 0:02:58]}  e6 {[%clk 0:03:00]} 6. O-O {[%clk 0:02:58]}  Nge7 {[%clk 0:02:58]} 7. d3 {[%clk 0:02:49]}  O-O {[%clk 0:02:56]} 8. Qe1 {[%clk 0:02:46]}  d5 {[%clk 0:02:55]} 9. Bb3 {[%clk 0:02:46]}  Nd4 {[%clk 0:02:49]} 10. Kh1 {[%clk 0:02:34]}  b6 {[%clk 0:02:28]} 11. e5 {[%clk 0:02:29]}  Nef5 {[%clk 0:02:25]} 12. Ne2 {[%clk 0:02:23]}  Nxf3 {[%clk 0:02:17]} 13. Rxf3 {[%clk 0:02:23]}  Ba6 {[%clk 0:02:11]} 14. c3 {[%clk 0:02:19]}  c4 {[%clk 0:02:07]} 15. dxc4 {[%clk 0:02:16]}  dxc4 {[%clk 0:02:08]} 16. Bc2 {[%clk 0:02:15]}  Bb7 {[%clk 0:02:08]} 17. Rf2 {[%clk 0:01:59]}  Nh4 {[%clk 0:01:50]} 18. Nd4 {[%clk 0:01:48]}  Qd5 {[%clk 0:00:42]} 19. Nf3 {[%clk 0:01:40]}  Nxf3 {[%clk 0:00:30]} 20. Rxf3 {[%clk 0:01:41]}  Bh6 {[%clk 0:00:31]} 21. Be3 {[%clk 0:01:35]}  Qb5 {[%clk 0:00:27]} 22. Rf2 {[%clk 0:01:29]}  Rad8 {[%clk 0:00:21]} 23. Rb1 {[%clk 0:01:19]}  Qd5 {[%clk 0:00:17]} 24. h3 {[%clk 0:01:15]}  f6 {[%clk 0:00:15]} 25. exf6 {[%clk 0:01:14]}  Rxf6 {[%clk 0:00:16]} 26. Rd1 {[%clk 0:01:12]}  Qxd1 {[%clk 0:00:03]} 27. Bxd1 {[%clk 0:01:13]}  e5 {[%clk 0:00:04]} 28. Bf3 {[%clk 0:01:08]}  e4 {[%clk 0:00:03]} 29. Be2 {[%clk 0:01:07]}  b5 {[%clk 0:00:02]} 30. a4 {[%clk 0:01:01]}  a6 {[%clk 0:00:01]} 31. axb5 {[%clk 0:01:01]}  axb5 {[%clk 0:00:02]} 32. Bg4 {[%clk 0:01:01]}  Rdf8 {[%clk 0:00:02]} 33. Qd2 {[%clk 0:00:58]}  g5 {[%clk 0:00:02]} 34. fxg5 {[%clk 0:00:57]}  Rxf2 {[%clk 0:00:03]} 35. Bxf2 {[%clk 0:00:58]}  e3 {[%clk 0:00:02]} 36. Bxe3 {[%clk 0:00:56]}  Bxg5 {[%clk 0:00:02]} 37. Bxg5 {[%clk 0:00:56]}  Rf1+ {[%clk 0:00:00]} 38. Kh2 {[%clk 0:00:56]} 1-0


[Site "https://www.chess.com"]

[Event "Titled Tuesday Blitz May 23 Early 2023"]
[White "Jaivardhan Raj"]
[Black "Manukyan, Artyom"]
[WhiteFideId "25744437"]
[BlackFideId "13305786"]
[WhiteElo "1772"]
[BlackElo "2078"]
[Result "1-0"]
[Round "01"]
[TimeControl "180+2"]
[Date "2023.05.23"]
[WhiteClock "0:00:06"]
[BlackClock "0:00:07"]

1. e4 {[%clk 0:03:00]}  c5 {[%clk 0:02:56]} 2. Nf3 {[%clk 0:02:57]}  d6 {[%clk 0:02:56]} 3. d4 {[%clk 0:02:54]}  cxd4 {[%clk 0:02:55]} 4. Qxd4 {[%clk 0:02:52]}  Nc6 {[%clk 0:02:55]} 5. Qe3 {[%clk 0:02:50]}  Nf6 {[%clk 0:02:55]} 6. c4 {[%clk 0:02:50]}  g6 {[%clk 0:02:55]} 7. Nc3 {[%clk 0:02:49]}  Bg7 {[%clk 0:02:55]} 8. h3 {[%clk 0:02:49]}  O-O {[%clk 0:02:51]} 9. Be2 {[%clk 0:02:49]}  b6 {[%clk 0:02:50]} 10. O-O {[%clk 0:02:50]}  Bb7 {[%clk 0:02:50]} 11. Rd1 {[%clk 0:02:49]}  Qc8 {[%clk 0:02:48]} 12. b3 {[%clk 0:02:47]}  Rd8 {[%clk 0:02:44]} 13. Bb2 {[%clk 0:02:46]}  e6 {[%clk 0:02:43]} 14. Rac1 {[%clk 0:02:46]}  Qc7 {[%clk 0:02:25]} 15. Ba1 {[%clk 0:02:17]}  Qe7 {[%clk 0:02:21]} 16. Nb5 {[%clk 0:02:12]}  Nb4 {[%clk 0:01:58]} 17. a3 {[%clk 0:01:57]}  Na6 {[%clk 0:01:56]} 18. e5 {[%clk 0:01:25]}  dxe5 {[%clk 0:01:56]} 19. Bxe5 {[%clk 0:01:23]}  Nc5 {[%clk 0:01:31]} 20. Bd6 {[%clk 0:01:04]}  Rxd6 {[%clk 0:01:26]} 21. Nxd6 {[%clk 0:00:54]}  Bc6 {[%clk 0:01:26]} 22. Ne5 {[%clk 0:00:37]}  Be8 {[%clk 0:01:17]} 23. Bf3 {[%clk 0:00:27]}  Rd8 {[%clk 0:01:13]} 24. Nxe8 {[%clk 0:00:28]}  Rxe8 {[%clk 0:01:12]} 25. b4 {[%clk 0:00:27]}  Ncd7 {[%clk 0:00:58]} 26. Nxd7 {[%clk 0:00:22]}  Nxd7 {[%clk 0:00:59]} 27. Bc6 {[%clk 0:00:22]}  Rd8 {[%clk 0:00:59]} 28. Bxd7 {[%clk 0:00:21]}  Rxd7 {[%clk 0:01:00]} 29. Rd2 {[%clk 0:00:19]}  Bf6 {[%clk 0:00:52]} 30. Rcd1 {[%clk 0:00:18]}  Rxd2 {[%clk 0:00:52]} 31. Qxd2 {[%clk 0:00:19]}  Qc7 {[%clk 0:00:50]} 32. Qd3 {[%clk 0:00:17]}  Kg7 {[%clk 0:00:49]} 33. b5 {[%clk 0:00:16]}  Qc5 {[%clk 0:00:47]} 34. a4 {[%clk 0:00:16]}  h5 {[%clk 0:00:47]} 35. Qc2 {[%clk 0:00:16]}  h4 {[%clk 0:00:45]} 36. Rd7 {[%clk 0:00:16]}  Qb4 {[%clk 0:00:39]} 37. Rxa7 {[%clk 0:00:15]}  Qe1+ {[%clk 0:00:39]} 38. Kh2 {[%clk 0:00:15]}  Be5+ {[%clk 0:00:39]} 39. g3 {[%clk 0:00:14]}  hxg3+ {[%clk 0:00:35]} 40. Kg2 {[%clk 0:00:13]}  Bf4 {[%clk 0:00:18]} 41. Rd7 {[%clk 0:00:07]}  e5 {[%clk 0:00:17]} 42. c5 {[%clk 0:00:06]}  bxc5 {[%clk 0:00:16]} 43. Qa2 {[%clk 0:00:06]}  Kh6 {[%clk 0:00:12]} 44. Rxf7 {[%clk 0:00:06]}  gxf2 {[%clk 0:00:12]} 45. Qxf2 {[%clk 0:00:05]}  Qe4+ {[%clk 0:00:13]} 46. Qf3 {[%clk 0:00:06]}  Qc2+ {[%clk 0:00:12]} 47. Qf2 {[%clk 0:00:06]}  Qe4+ {[%clk 0:00:12]} 48. Qf3 {[%clk 0:00:06]}  Qc2+ {[%clk 0:00:12]} 49. Qf2 {[%clk 0:00:06]}  Qxa4 {[%clk 0:00:07]} 50. Qh4# {[%clk 0:00:06]} 1-0


[Site "https://www.chess.com"]